[Event "2nd Namma Bengaluru Open-A 2025"]
[Site "Bengaluru"]
[Date "2025.04.10"]
[Round "1.9"]
[White "Badrinath, S.."]
[Black "Neelash Saha"]
[Result "1/2-1/2"]
[Annotator "RC"]
[ECO "B29"]
[WhiteElo "2033"]
[BlackElo "2460"]
[PlyCount "101"]
[EventDate "2025.04.10"]
[EventType "swiss"]
[EventCountry "IND"]
[SourceTitle "playchess.com"]
[Source "ChessBase"]
[SourceQuality "1"]
[TimeControl "5400+30"]

1. e4 c5 2. Nf3 Nf6 3. e5 Nd5 4. d4 cxd4 5. Bc4 Nb6 6. Bb3 Nc6 7. Bf4 Na5 8. Qxd4 Nxb3 9. axb3 e6 10. c4 Bb4+ 11. Bd2 Qe7 12. O-O O-O 13. Bxb4 Qxb4 14. Nbd2 f6 15. Qd6 Qxd6 16. exd6 a6 17. Ne4 Rb8 18. Rfd1 Na8 19. c5 Rd8 20. Nd4 Kf7 21. f4 Re8 22. b4 h6 23. Ra3 e5 24. fxe5 Rxe5 25. Re3 b6 26. c6 b5 27. Nf3 Re6 28. Ree1 Nb6 29. Nc5 Rxe1+ 30. Rxe1 dxc6 31. Re7+ Kg6 32. d7 Nxd7 33. Nxd7 Bxd7 34. Rxd7 Re8 35. Ra7 c5 36. bxc5 Re5 37. b4 Re4 38. Rxa6 Rxb4 39. Kf2 h5 40. Ke3 Rb3+ 41. Ke2 Rb2+ 42. Nd2 h4 43. Ra3 Kf5 44. Kd3 g5 45. Ra5 Rb4 46. h3 Kg6 47. Ne4 Rb2 48. Nd2 Rb4 49. Ne4 Rb2 50. Nd2 Rb4 51. Ne4 1/2-1/2

[Event "2nd Namma Bengaluru Open-A 2025"]
[Site "Bengaluru"]
[Date "2025.04.10"]
[Round "1.10"]
[White "Savchenko, Boris"]
[Black "Kolla Bhaavan"]
[Result "1-0"]
[Annotator "RC"]
[ECO "C84"]
[WhiteElo "2459"]
[BlackElo "2033"]
[PlyCount "103"]
[EventDate "2025.04.10"]
[EventType "swiss"]
[EventCountry "IND"]
[SourceTitle "playchess.com"]
[Source "ChessBase"]
[SourceQuality "1"]
[TimeControl "5400+30"]

1. e4 {[%emt 0:00:05]} e5 {[%emt 0:00:24]} 2. Nf3 Nc6 {[%emt 0:00:05]} 3. Bb5 {[%emt 0:00:21]} a6 {[%emt 0:02:08]} 4. Ba4 {[%emt 0:00:45]} Nf6 {[%emt 0:00:36]} 5. O-O {[%emt 0:00:07]} Nxe4 {[%emt 0:04:03]} 6. d4 {[%emt 0:00:08]} Be7 {[%emt 0:02:40]} 7. Re1 {[%emt 0:04:28]} b5 {[%emt 0:01:14]} 8. Rxe4 {[%emt 0:01:05]} d5 {[%emt 0:00:33]} 9. Nxe5 {[%emt 0:00:21]} Nxe5 {[%emt 0:00:23]} 10. Rxe5 {[%emt 0:01:43]} bxa4 {[%emt 0:00:06]} 11. Nc3 {[%emt 0:00:09]} O-O {[%emt 0:00:15]} 12. Rxd5 {[%emt 0:00:29]} Bd6 {[%emt 0:00:21]} 13. Bf4 {[%emt 0:00:45]} Be6 {[%emt 0:00:09]} 14. Rxd6 {[%emt 0:00:44]} cxd6 {[%emt 0:00:11]} 15. Nxa4 {[%emt 0:00:09]} Qa5 {[%emt 0:16:58]} 16. b3 {[%emt 0:01:24]} d5 {[%emt 0:24:57]} 17. h3 {[%emt 0:07:49]} Rfe8 {[%emt 0:18:41]} 18. Qf3 {[%emt 0:06:08]} Bf5 {[%emt 0:06:42]} 19. c3 {[%emt 0:00:19]} Be4 {[%emt 0:08:39]} 20. Qg3 {[%emt 0:04:25]} Re6 {[%emt 0:05:24]} 21. f3 {[%emt 0:00:44]} Bg6 {[%emt 0:01:49]} 22. Bc7 {[%emt 0:02:44]} Qb5 {[%emt 0:00:15]} 23. Nc5 {[%emt 0:01:05]} Re3 {[%emt 0:03:24]} 24. a4 {[%emt 0:01:32]} Qe2 {[%emt 0:01:46]} 25. Ba5 {[%emt 0:01:44]} Rae8 {[%emt 0:00:41]} 26. Qf2 {[%emt 0:00:48]} Qxf2+ {[%emt 0:00:33]} 27. Kxf2 {[%emt 0:00:08]} Re2+ {[%emt 0:00:23]} 28. Kg3 {[%emt 0:00:10]} Rb2 {[%emt 0:00:36]} 29. b4 {[%emt 0:00:59]} Ree2 {[%emt 0:00:31]} 30. Rg1 {[%emt 0:00:07]} h5 {[%emt 0:00:30]} 31. h4 {[%emt 0:00:36]} Bc2 {[%emt 0:00:31]} 32. Bb6 {[%emt 0:01:46]} Re3 {[%emt 0:00:31]} 33. Ra1 {[%emt 0:02:26]} Bd3 {[%emt 0:00:29]} 34. b5 {[%emt 0:02:10]} Bxb5 {[%emt 0:00:30]} 35. axb5 {[%emt 0:00:12]} axb5 {[%emt 0:00:12]} 36. Ba5 {[%emt 0:01:18]} f6 {[%emt 0:00:48]} 37. Bb4 {[%emt 0:02:00]} Ree2 {[%emt 0:00:27]} 38. Rg1 {[%emt 0:00:11]} g5 {[%emt 0:00:31]} 39. Na6 {[%emt 0:01:33]} Kf7 {[%emt 0:00:32]} 40. Nc7 {[%emt 0:00:20]} Kg6 {[%emt 0:00:31]} 41. Nxd5 {[%emt 0:00:17]} Kf5 {[%emt 0:00:30]} 42. Ne7+ {[%emt 0:00:22]} Ke6 {[%emt 0:00:05]} 43. d5+ {[%emt 0:00:06]} Kd7 {[%emt 0:00:06]} 44. Ng8 {[%emt 0:00:12]} gxh4+ {[%emt 0:00:06]} 45. Kh3 {[%emt 0:00:07]} f5 {[%emt 0:00:25]} 46. Nf6+ {[%emt 0:00:09]} Kd8 {[%emt 0:00:19]} 47. d6 {[%emt 0:00:10]} Ra2 {[%emt 0:00:06]} 48. Bc5 {[%emt 0:00:09]} Ra6 {[%emt 0:00:05]} 49. Kxh4 {[%emt 0:00:30]} Re6 {[%emt 0:00:15]} 50. Kg5 {[%emt 0:00:07]} Re5 {[%emt 0:00:09]} 51. Ra1 {[%emt 0:00:27]} Rxa1 {[%emt 0:00:05]} 52. Bb6+ {[%emt 0:00:06]} 1-0

[Event "2nd Namma Bengaluru Open-A 2025"]
[Site "Bengaluru"]
[Date "2025.04.10"]
[Round "1.11"]
[White "Sobh, Amrou"]
[Black "Stany, G.A."]
[Result "0-1"]
[Annotator "RC"]
[ECO "E52"]
[WhiteElo "2032"]
[BlackElo "2454"]
[PlyCount "114"]
[EventDate "2025.04.10"]
[EventType "swiss"]
[EventCountry "IND"]
[SourceTitle "playchess.com"]
[Source "ChessBase"]
[SourceQuality "1"]
[TimeControl "5400+30"]

1. d4 {[%emt 1:31:00]} Nf6 {[%emt 1:31:00]} 2. c4 e6 3. Nc3 Bb4 4. Bd2 b6 5. e3 Bb7 6. Nf3 O-O 7. Bd3 d5 8. cxd5 exd5 9. O-O Re8 10. Rc1 a6 11. Ne2 Bd6 12. Qb3 Nbd7 13. Bb4 c5 14. Bxc5 bxc5 15. Qxb7 c4 16. Bf5 Nb6 17. b3 Re7 18. Qc6 Rb8 19. bxc4 Rc7 20. Qxd6 Qxd6 21. c5 Qe7 22. cxb6 Rxb6 23. Ne5 g6 24. Bd3 Ne8 25. Nf4 Qa3 26. Rc5 Rd6 27. Rxd5 Rxd5 28. Nxd5 Rc1 29. Bxa6 Rxf1+ 30. Bxf1 Qxa2 31. Nb4 Qb1 32. Ned3 Nd6 33. g3 Ne4 34. Kg2 Qd1 35. Nb2 Qd2 36. N4d3 Qc2 37. h4 f5 38. Kg1 Nxf2 {[%emt 0:18:30]} 39. Nxf2 {[%emt 0:19:00]} Qxb2 {[%emt 0:00:30]} 40. e4 {[%emt 0:00:30]} Qxd4 {[%emt 0:00:30]} 41. exf5 {[%emt 0:00:30]} gxf5 {[%emt 0:00:30]} 42. Kg2 {[%emt 0:00:30]} Qd5+ {[%emt 0:00:30]} 43. Kh2 {[%emt 0:00:30]} Qd2 {[%emt 0:00:30]} 44. Kg1 {[%emt 0:00:30]} f4 {[%emt 0:00:30]} 45. gxf4 {[%emt 0:00:30]} Qxf4 {[%emt 0:00:30]} 46. Bh3 {[%emt 0:00:30]} Qxh4 {[%emt 0:00:30]} 47. Kg2 {[%emt 0:00:30]} Kg7 {[%emt 0:00:30]} 48. Kf3 {[%emt 0:00:30]} Qf6+ {[%emt 0:00:30]} 49. Kg3 {[%emt 0:00:30]} h5 {[%emt 0:00:30]} 50. Kg2 {[%emt 0:00:30]} Qf4 {[%emt 0:00:30]} 51. Kf1 {[%emt 0:00:30]} Kf6 {[%emt 0:00:30]} 52. Kg2 {[%emt 0:00:30]} Qe3 {[%emt 0:00:30]} 53. Bd7 {[%emt 0:00:30]} Ke5 {[%emt 0:00:30]} 54. Be8 {[%emt 0:00:30]} Qe2 {[%emt 0:00:30]} 55. Bc6 {[%emt 0:00:30]} Kf4 {[%emt 0:00:30]} 56. Kg1 {[%emt 0:00:30]} Ke3 {[%emt 0:00:30]} 57. Nh3 {[%emt 0:00:30]} Qd1+ {[%emt 0:00:30]} 0-1

[Event "2nd Namma Bengaluru Open-A 2025"]
[Site "Bengaluru"]
[Date "2025.04.10"]
[Round "1.12"]
[White "Goutham Krishna H"]
[Black "Yashad Bambeshwar"]
[Result "1-0"]
[Annotator "RC"]
[ECO "A00"]
[WhiteElo "2449"]
[BlackElo "2032"]
[PlyCount "95"]
[EventDate "2025.04.10"]
[EventType "swiss"]
[EventCountry "IND"]
[SourceTitle "playchess.com"]
[Source "ChessBase"]
[SourceQuality "1"]
[TimeControl "5400+30"]

1. g3 {[%emt 1:31:00]} e5 {[%emt 0:01:53]} 2. Bg2 {[%emt 0:00:00]} d5 {[%emt 0:00:04]} 3. d3 {[%emt 0:00:00]} Nf6 {[%emt 0:00:04]} 4. Nf3 {[%emt 0:00:00]} Bd6 {[%emt 0:00:04]} 5. O-O {[%emt 0:00:00]} O-O {[%emt 0:00:05]} 6. c4 {[%emt 0:00:00]} c6 {[%emt 0:00:03]} 7. cxd5 {[%emt 0:00:00]} cxd5 {[%emt 0:00:05]} 8. Nc3 {[%emt 0:00:00]} h6 9. e4 {[%emt 0:00:00]} d4 {[%emt 0:00:10]} 10. Nb5 Bg4 {[%emt 0:00:10]} 11. h3 {[%emt 0:00:00]} Bxf3 {[%emt 0:04:18]} 12. Bxf3 {[%emt 0:00:00]} Be7 {[%emt 0:23:07]} 13. Bg2 {[%emt 0:00:00]} a6 {[%emt 0:06:33]} 14. Na3 {[%emt 0:00:00]} Bxa3 {[%emt 0:02:09]} 15. bxa3 {[%emt 0:00:00]} Nbd7 {[%emt 0:01:31]} 16. f4 {[%emt 0:00:00]} Rc8 {[%emt 0:00:50]} 17. Rb1 {[%emt 0:00:00]} Nc5 {[%emt 0:11:40]} 18. Rf3 {[%emt 0:00:00]} b5 {[%emt 0:02:55]} 19. Bd2 {[%emt 0:00:00]} Na4 20. Qb3 {[%emt 0:00:00]} Nd7 {[%emt 0:05:59]} 21. f5 {[%emt 0:00:00]} Ndc5 {[%emt 0:02:07]} 22. Qb4 {[%emt 0:00:00]} Nc3 {[%emt 0:07:38]} 23. Re1 {[%emt 0:00:00]} a5 {[%emt 0:07:04]} 24. Qb2 {[%emt 0:00:00]} N5a4 {[%emt 0:00:56]} 25. Qb3 {[%emt 0:00:00]} Nc5 {[%emt 0:00:53]} 26. Qb2 {[%emt 0:00:00]} N5a4 {[%emt 0:16:41]} 27. Qa1 {[%emt 0:00:00]} f6 {[%emt 0:00:23]} 28. g4 {[%emt 0:00:00]} b4 {[%emt 0:00:09]} 29. axb4 {[%emt 0:00:00]} axb4 {[%emt 0:00:02]} 30. h4 {[%emt 0:00:00]} Nc5 {[%emt 0:02:21]} 31. Qb2 {[%emt 0:00:00]} Qa5 {[%emt 0:00:18]} 32. g5 {[%emt 0:00:00]} hxg5 {[%emt 0:02:00]} 33. hxg5 {[%emt 0:00:00]} fxg5 {[%emt 0:01:03]} 34. Bxg5 {[%emt 0:00:00]} Qa3 {[%emt 0:01:21]} 35. Qf2 {[%emt 0:00:00]} Kf7 {[%emt 0:02:21]} 36. Qg3 {[%emt 0:00:00]} Rce8 {[%emt 0:00:26]} 37. Bh4 {[%emt 0:04:42]} Qa6 {[%emt 0:00:36]} 38. f6 {[%emt 0:01:58]} g6 {[%emt 0:00:06]} 39. Qg5 {[%emt 0:00:09]} Rh8 {[%emt 0:01:16]} 40. Rg3 {[%emt 0:00:18]} Reg8 {[%emt 0:00:29]} 41. Qxe5 {[%emt 0:00:28]} Ne6 {[%emt 0:00:10]} 42. Bg5 {[%emt 0:01:02]} Nxa2 {[%emt 0:00:40]} 43. Bh3 {[%emt 0:01:10]} b3 {[%emt 0:00:40]} 44. Bxe6+ {[%emt 0:00:44]} Qxe6 {[%emt 0:00:01]} 45. Qc7+ {[%emt 0:00:01]} Kf8 {[%emt 0:00:31]} 46. f7 {[%emt 0:01:20]} Qxf7 {[%emt 0:00:30]} 47. Qd6+ {[%emt 0:00:04]} Ke8 {[%emt 0:00:55]} 48. Qd8# {[%emt 0:00:07]} 1-0

[Event "2nd Namma Bengaluru Open-A 2025"]
[Site "Bengaluru"]
[Date "2025.04.10"]
[Round "1.13"]
[White "Sailesh R"]
[Black "Sanikidze, Tornike"]
[Result "0-1"]
[Annotator "RC"]
[ECO "B89"]
[WhiteElo "2025"]
[BlackElo "2448"]
[PlyCount "76"]
[EventDate "2025.04.10"]
[EventType "swiss"]
[EventCountry "IND"]
[SourceTitle "playchess.com"]
[Source "ChessBase"]
[SourceQuality "1"]
[TimeControl "5400+30"]

1. e4 {[%emt 1:31:00]} c5 {[%emt 1:31:00]} 2. Nf3 d6 3. d4 cxd4 4. Nxd4 Nf6 5. Nc3 Nc6 6. Bc4 e6 7. Be3 a6 8. Qe2 Qc7 9. Bb3 Na5 10. O-O-O b5 11. f3 Nxb3+ 12. axb3 Bb7 13. g4 Nd7 14. Kb1 g6 15. Qd2 h5 16. h3 b4 17. Na4 e5 18. Ne2 a5 19. Ng3 h4 20. Nf1 f5 21. gxf5 gxf5 22. Bg5 f4 23. Qg2 Nc5 24. Bf6 Rh6 {[%emt 0:11:30]} 25. Nxc5 {[%emt 0:12:00]} Rxf6 {[%emt 0:00:30]} 26. Nxb7 {[%emt 0:00:30]} Qxb7 {[%emt 0:00:30]} 27. Nd2 {[%emt 0:00:30]} a4 {[%emt 0:00:30]} 28. Nc4 {[%emt 0:00:30]} Qa6 {[%emt 0:00:30]} 29. Rd5 {[%emt 0:00:30]} axb3 {[%emt 0:00:30]} 30. cxb3 {[%emt 0:00:30]} Qa2+ 31. Kc2 {[%emt 0:00:30]} Rc8 32. Qd2 {[%emt 0:00:30]} Rg6 {[%emt 0:01:30]} 33. Rd1 {[%emt 0:00:30]} Rxc4+ {[%emt 0:00:30]} 34. bxc4 {[%emt 0:00:30]} b3+ {[%emt 0:00:30]} 35. Kd3 {[%emt 0:00:30]} Qa7 {[%emt 0:00:30]} 36. Rf1 {[%emt 0:00:30]} Rg2 {[%emt 0:00:30]} 37. Qe1 {[%emt 0:00:30]} Rxb2 {[%emt 0:00:30]} 38. Rh1 {[%emt 0:00:30]} Rb1 {[%emt 0:00:30]} 0-1

[Event "2nd Namma Bengaluru Open-A 2025"]
[Site "Bengaluru"]
[Date "2025.04.10"]
[Round "1.14"]
[White "Nitish Belurkar"]
[Black "Ayushh Ravikumar"]
[Result "1-0"]
[Annotator "RC"]
[ECO "C48"]
[WhiteElo "2441"]
[BlackElo "2023"]
[PlyCount "77"]
[EventDate "2025.04.10"]
[EventType "swiss"]
[EventCountry "IND"]
[SourceTitle "playchess.com"]
[Source "ChessBase"]
[SourceQuality "1"]
[TimeControl "5400+30"]

1. e4 {[%emt 0:00:03]} e5 {[%emt 0:00:29]} 2. Nf3 {[%emt 0:00:06]} Nf6 {[%emt 0:00:16]} 3. Nc3 {[%emt 0:01:39]} Nc6 {[%emt 0:00:40]} 4. Bb5 Nd4 {[%emt 0:01:14]} 5. O-O {[%emt 0:00:51]} Nxb5 {[%emt 0:01:28]} 6. Nxb5 {[%emt 0:00:02]} d6 {[%emt 0:01:45]} 7. d4 {[%emt 0:00:06]} exd4 {[%emt 0:09:36]} 8. Nfxd4 {[%emt 0:00:14]} Be7 {[%emt 0:00:54]} 9. Qf3 {[%emt 0:04:48]} O-O {[%emt 0:02:34]} 10. c4 {[%emt 0:04:18]} Nd7 {[%emt 0:14:59]} 11. Be3 {[%emt 0:17:16]} Bf6 {[%emt 0:01:53]} 12. Rad1 {[%emt 0:00:50]} Re8 {[%emt 0:12:45]} 13. Nc3 {[%emt 0:06:08]} Ne5 {[%emt 0:09:09]} 14. Qe2 {[%emt 0:00:24]} Bd7 {[%emt 0:03:10]} 15. f3 {[%emt 0:09:02]} Nc6 {[%emt 0:02:46]} 16. Qf2 {[%emt 0:02:25]} Nxd4 {[%emt 0:04:56]} 17. Bxd4 {[%emt 0:00:02]} Bc6 {[%emt 0:00:30]} 18. Rfe1 {[%emt 0:09:33]} Bxd4 {[%emt 0:07:11]} 19. Rxd4 {[%emt 0:06:33]} Qg5 {[%emt 0:01:57]} 20. b4 {[%emt 0:01:35]} b6 {[%emt 0:03:41]} 21. Qc2 {[%emt 0:07:44]} f5 {[%emt 0:04:32]} 22. b5 {[%emt 0:02:25]} Bb7 {[%emt 0:01:28]} 23. Nd5 {[%emt 0:04:46]} fxe4 24. Rdxe4 Rxe4 {[%emt 0:04:22]} 25. Qxe4 {[%emt 0:00:46]} Bxd5 {[%emt 0:00:28]} 26. cxd5 {[%emt 0:01:03]} Qe5 {[%emt 0:08:37]} 27. Qxe5 {[%emt 0:04:09]} dxe5 {[%emt 0:00:05]} 28. Rc1 {[%emt 0:04:06]} Rd8 {[%emt 0:02:20]} 29. Rxc7 {[%emt 0:00:11]} Rxd5 {[%emt 0:00:05]} 30. a4 {[%emt 0:00:02]} Rd4 {[%emt 0:01:04]} 31. Rxa7 {[%emt 0:00:02]} h6 {[%emt 0:00:28]} 32. Kf2 {[%emt 0:02:06]} e4 {[%emt 0:00:33]} 33. f4 {[%emt 0:05:41]} Rd2+ {[%emt 0:00:30]} 34. Ke3 {[%emt 0:00:08]} Rxg2 {[%emt 0:00:12]} 35. a5 {[%emt 0:00:57]} bxa5 {[%emt 0:00:43]} 36. b6 {[%emt 0:00:45]} Rb2 {[%emt 0:00:07]} 37. b7 {[%emt 0:00:02]} Kh7 {[%emt 0:00:21]} 38. f5 {[%emt 0:00:01]} h5 {[%emt 0:01:08]} 39. f6 {[%emt 0:00:12]} 1-0

[Event "2nd Namma Bengaluru Open-A 2025"]
[Site "Bengaluru"]
[Date "2025.04.10"]
[Round "1.15"]
[White "Vijaya, Bhaskar B."]
[Black "Vaz, Ethan"]
[Result "0-1"]
[Annotator "RC"]
[ECO "B92"]
[WhiteElo "2022"]
[BlackElo "2430"]
[PlyCount "50"]
[EventDate "2025.04.10"]
[EventType "swiss"]
[EventCountry "IND"]
[SourceTitle "playchess.com"]
[Source "ChessBase"]
[SourceQuality "1"]
[TimeControl "5400+30"]

1. e4 {[%emt 0:00:30]} c5 {[%emt 0:00:30]} 2. Nf3 {[%emt 0:00:30]} d6 {[%emt 0:00:30]} 3. d4 {[%emt 0:00:30]} cxd4 {[%emt 0:00:30]} 4. Nxd4 {[%emt 0:00:30]} Nf6 {[%emt 0:00:30]} 5. Nc3 {[%emt 0:00:30]} a6 {[%emt 0:00:30]} 6. Be2 {[%emt 0:00:30]} e5 {[%emt 0:00:30]} 7. Nb3 {[%emt 0:00:30]} Be7 {[%emt 0:00:30]} 8. Be3 {[%emt 0:00:30]} Be6 {[%emt 0:00:30]} 9. g4 {[%emt 0:00:30]} h6 {[%emt 0:00:30]} 10. Rg1 {[%emt 0:00:30]} Nbd7 {[%emt 0:00:30]} 11. f3 {[%emt 0:00:30]} Nb6 {[%emt 0:00:30]} 12. Qd2 {[%emt 0:00:30]} d5 {[%emt 0:00:30]} 13. exd5 {[%emt 0:00:30]} Nfxd5 {[%emt 0:00:30]} 14. Nxd5 {[%emt 0:00:30]} Nxd5 {[%emt 0:00:30]} 15. Bf2 {[%emt 0:00:30]} Rc8 {[%emt 0:00:30]} 16. Rd1 {[%emt 0:00:30]} O-O {[%emt 0:00:30]} 17. Bd3 {[%emt 0:00:30]} Bb4 {[%emt 0:00:30]} 18. c3 {[%emt 0:00:30]} Nxc3 {[%emt 0:00:30]} 19. Bh7+ {[%emt 0:00:30]} Kxh7 {[%emt 0:00:30]} 20. Qxd8 {[%emt 0:00:30]} Nxd1+ {[%emt 0:00:30]} 21. Qd2 {[%emt 0:00:30]} Bxd2+ {[%emt 0:00:30]} 22. Kxd1 {[%emt 0:00:30]} Bf4 {[%emt 0:00:30]} 23. h4 {[%emt 0:00:30]} Rfd8+ {[%emt 0:00:30]} 24. Ke2 {[%emt 0:00:30]} Bc4+ {[%emt 0:00:30]} 25. Ke1 {[%emt 0:00:30]} Bxb3 {[%emt 0:00:30]} 0-1

[Event "2nd Namma Bengaluru Open-A 2025"]
[Site "Bengaluru"]
[Date "2025.04.10"]
[Round "1.16"]
[White "Mehar, Chinna Reddy C.H."]
[Black "Salunke Siddhant"]
[Result "1-0"]
[Annotator "RC"]
[ECO "B30"]
[WhiteElo "2418"]
[BlackElo "2020"]
[PlyCount "79"]
[EventDate "2025.04.10"]
[EventType "swiss"]
[EventCountry "IND"]
[SourceTitle "playchess.com"]
[Source "ChessBase"]
[SourceQuality "1"]
[TimeControl "5400+30"]

1. e4 {[%emt 0:00:30]} c5 {[%emt 0:00:30]} 2. Nf3 {[%emt 0:00:30]} e6 {[%emt 0:00:30]} 3. b3 {[%emt 0:00:30]} Nc6 {[%emt 0:00:30]} 4. Bb5 {[%emt 0:00:30]} a6 {[%emt 0:00:30]} 5. Bxc6 {[%emt 0:00:30]} bxc6 {[%emt 0:00:30]} 6. Qe2 {[%emt 0:00:30]} d5 {[%emt 0:00:30]} 7. e5 {[%emt 0:00:30]} Ne7 {[%emt 0:00:30]} 8. d3 {[%emt 0:00:30]} Nf5 {[%emt 0:00:30]} 9. Bg5 {[%emt 0:00:30]} Be7 {[%emt 0:00:30]} 10. Bxe7 {[%emt 0:00:30]} Qxe7 {[%emt 0:00:30]} 11. c4 {[%emt 0:00:30]} h5 {[%emt 0:00:30]} 12. h4 {[%emt 0:00:30]} Qc7 {[%emt 0:00:30]} 13. O-O {[%emt 0:00:30]} Bd7 {[%emt 0:00:30]} 14. Rc1 {[%emt 0:00:30]} Rc8 {[%emt 0:00:30]} 15. Nc3 {[%emt 0:00:30]} O-O {[%emt 0:00:30]} 16. Na4 {[%emt 0:00:30]} Qa7 {[%emt 0:00:30]} 17. Qb2 {[%emt 0:00:30]} f6 {[%emt 0:00:30]} 18. Qa3 {[%emt 0:00:30]} fxe5 {[%emt 0:00:30]} 19. Qxc5 {[%emt 0:00:30]} Qb8 {[%emt 0:00:30]} 20. Re1 {[%emt 0:00:30]} Be8 {[%emt 0:00:30]} 21. Qb6 {[%emt 0:00:30]} Qd6 {[%emt 0:00:30]} 22. Qxa6 {[%emt 0:00:30]} Bg6 {[%emt 0:00:30]} 23. Qb6 {[%emt 0:00:30]} Qe7 {[%emt 0:00:30]} 24. Rxe5 {[%emt 0:00:30]} Nxh4 {[%emt 0:00:30]} 25. Nxh4 {[%emt 0:00:30]} Qxh4 {[%emt 0:00:30]} 26. Qe3 {[%emt 0:00:30]} Bf5 {[%emt 0:00:30]} 27. Nc5 {[%emt 0:00:30]} Rf6 {[%emt 0:00:30]} 28. a4 {[%emt 0:00:30]} Bg4 {[%emt 0:00:30]} 29. Qg3 {[%emt 0:00:30]} Qxg3 {[%emt 0:00:30]} 30. fxg3 {[%emt 0:00:30]} Rf7 {[%emt 0:00:30]} 31. a5 {[%emt 0:00:30]} Ra7 {[%emt 0:00:30]} 32. a6 {[%emt 0:00:30]} Kf7 {[%emt 0:00:30]} 33. b4 {[%emt 0:00:30]} Kf6 {[%emt 0:00:30]} 34. Ree1 {[%emt 0:00:30]} dxc4 {[%emt 0:00:30]} 35. dxc4 {[%emt 0:00:30]} Rb8 {[%emt 0:00:30]} 36. Rab1 {[%emt 0:00:30]} Bf5 {[%emt 0:00:30]} 37. Rb2 {[%emt 0:00:30]} Rc8 {[%emt 0:00:30]} 38. b5 {[%emt 0:00:30]} cxb5 {[%emt 0:00:30]} 39. cxb5 {[%emt 0:00:30]} Rxc5 {[%emt 0:00:30]} 40. b6 {[%emt 0:00:30]} 1-0

[Event "2nd Namma Bengaluru Open-A 2025"]
[Site "Bengaluru"]
[Date "2025.04.10"]
[Round "1.17"]
[White "Syed Abdul Khader"]
[Black "Kaustuv, Kundu"]
[Result "0-1"]
[Annotator "RC"]
[ECO "A49"]
[WhiteElo "2019"]
[BlackElo "2407"]
[PlyCount "76"]
[EventDate "2025.04.10"]
[EventType "swiss"]
[EventCountry "IND"]
[SourceTitle "playchess.com"]
[Source "ChessBase"]
[SourceQuality "1"]
[TimeControl "5400+30"]

1. Nf3 Nf6 2. g3 g6 3. b3 Bg7 4. Bb2 d6 5. d4 Bf5 6. Bg2 Qc8 7. Nbd2 Bh3 8. Bxh3 Qxh3 9. e4 O-O 10. Qe2 a5 11. Ng5 Qc8 12. e5 a4 13. c4 dxe5 14. dxe5 Nfd7 15. O-O h6 16. Ngf3 Nc6 17. Rfd1 Nc5 18. Qe3 Ne6 19. Ne4 Rd8 20. Bc3 axb3 21. axb3 Rxa1 22. Rxa1 Qd7 23. b4 b6 24. Kg2 Kh7 25. h4 Ncd4 26. Bxd4 Nxd4 27. Qf4 Nxf3 28. Qxf3 Qf5 29. Qe3 Qxe5 30. Re1 Kg8 31. Re2 f5 32. Nc3 Qxc3 33. Qxe7 Qf6 34. Qxc7 f4 35. gxf4 Bf8 36. Re3 Rd4 37. Qe5 Qxe5 38. Rxe5 Bxb4 0-1

[Event "2nd Namma Bengaluru Open-A 2025"]
[Site "Bengaluru"]
[Date "2025.04.10"]
[Round "1.18"]
[White "Audi Ameya"]
[Black "Nithik Reddy Bhavanam"]
[Result "1/2-1/2"]
[Annotator "RC"]
[ECO "C54"]
[WhiteElo "2404"]
[BlackElo "2018"]
[PlyCount "62"]
[EventDate "2025.04.10"]
[EventType "swiss"]
[EventCountry "IND"]
[SourceTitle "playchess.com"]
[Source "ChessBase"]
[SourceQuality "1"]
[TimeControl "5400+30"]

1. e4 {[%emt 0:00:01]} e5 {[%emt 0:00:17]} 2. Nf3 {[%emt 0:00:04]} Nc6 3. Bc4 {[%emt 0:00:30]} Nf6 4. d3 {[%emt 0:00:30]} Bc5 5. O-O {[%emt 0:00:30]} d6 6. c3 {[%emt 0:00:30]} a5 7. Re1 {[%emt 0:00:30]} Ba7 8. Nbd2 {[%emt 0:00:30]} O-O 9. h3 {[%emt 0:00:30]} Be6 10. Bb5 {[%emt 0:00:30]} Ne7 11. d4 {[%emt 0:00:30]} Ng6 12. Bd3 {[%emt 0:00:30]} c6 13. Bc2 {[%emt 0:00:30]} h6 14. Nf1 {[%emt 0:00:30]} Qc7 15. Ng3 {[%emt 0:00:30]} Rad8 16. Be3 {[%emt 0:00:30]} b5 17. Qc1 {[%emt 0:00:30]} Kh7 18. Nf5 {[%emt 0:00:30]} Ng8 19. g4 {[%emt 0:00:30]} f6 20. h4 {[%emt 0:00:30]} Nh8 21. Kg2 {[%emt 0:00:30]} Nf7 22. g5 {[%emt 0:00:30]} Qd7 23. Rh1 {[%emt 0:00:30]} d5 24. Ng3 {[%emt 0:00:30]} dxe4 25. Nxe4 {[%emt 0:00:30]} f5 26. Ng3 {[%emt 0:00:30]} e4 27. Ng1 {[%emt 0:00:30]} Ne7 28. N1e2 {[%emt 0:00:30]} Nd5 29. Nf4 {[%emt 0:00:30]} Nxf4+ 30. Bxf4 {[%emt 0:00:30]} Nh8 31. gxh6 {[%emt 0:00:30]} g6 1/2-1/2

[Event "2nd Namma Bengaluru Open-A 2025"]
[Site "Bengaluru"]
[Date "2025.04.10"]
[Round "1.20"]
[White "Anuj Shrivatri"]
[Black "Bristy Mukherjee"]
[Result "1-0"]
[Annotator "RC"]
[ECO "A11"]
[WhiteElo "2400"]
[BlackElo "2015"]
[PlyCount "79"]
[EventDate "2025.04.10"]
[EventType "swiss"]
[EventCountry "IND"]
[SourceTitle "playchess.com"]
[Source "ChessBase"]
[SourceQuality "1"]
[TimeControl "5400+30"]

1. Nf3 {[%emt 1:31:00]} d5 {[%emt 0:01:12]} 2. g3 {[%emt 0:00:00]} Nf6 {[%emt 0:00:29]} 3. Bg2 {[%emt 0:00:00]} Bf5 4. c4 {[%emt 0:00:00]} c6 {[%emt 0:02:32]} 5. Qb3 {[%emt 0:00:00]} Qb6 {[%emt 0:00:33]} 6. d3 {[%emt 0:00:00]} e6 {[%emt 0:04:33]} 7. Be3 {[%emt 0:00:00]} Qb4+ {[%emt 0:08:29]} 8. Nbd2 {[%emt 0:00:00]} dxc4 {[%emt 0:09:40]} 9. Qxc4 {[%emt 0:00:00]} Nbd7 {[%emt 0:01:31]} 10. O-O {[%emt 0:00:00]} a5 {[%emt 0:19:54]} 11. Qc2 {[%emt 0:00:00]} Bc5 {[%emt 0:02:32]} 12. a3 {[%emt 0:00:00]} Qb5 {[%emt 0:02:29]} 13. Nc4 {[%emt 0:00:00]} O-O {[%emt 0:01:17]} 14. Nd4 {[%emt 0:00:00]} Bxd4 {[%emt 0:04:02]} 15. Bxd4 {[%emt 0:00:00]} Bg6 {[%emt 0:01:13]} 16. Nd6 {[%emt 0:00:00]} Qa6 {[%emt 0:04:10]} 17. b4 {[%emt 0:00:00]} Nd5 {[%emt 0:02:08]} 18. Qb2 {[%emt 0:00:00]} f6 {[%emt 0:03:09]} 19. Rfc1 {[%emt 0:00:00]} Bf7 {[%emt 0:02:39]} 20. b5 {[%emt 0:00:00]} cxb5 {[%emt 0:00:23]} 21. Nxb5 {[%emt 0:00:00]} e5 {[%emt 0:04:49]} 22. Bxd5 {[%emt 0:00:00]} Bxd5 {[%emt 0:00:36]} 23. Nc7 {[%emt 0:00:00]} Qd6 {[%emt 0:00:42]} 24. Nxa8 {[%emt 0:00:00]} Rxa8 {[%emt 0:05:57]} 25. Be3 {[%emt 0:00:00]} h5 {[%emt 0:00:21]} 26. f3 {[%emt 0:00:00]} f5 {[%emt 0:03:01]} 27. Qb5 {[%emt 0:00:00]} Kh7 {[%emt 0:00:56]} 28. Qa4 {[%emt 0:00:00]} Rf8 {[%emt 0:01:43]} 29. Qh4 {[%emt 0:00:00]} g6 {[%emt 0:00:41]} 30. Rc3 {[%emt 0:00:00]} f4 {[%emt 0:00:34]} 31. Bf2 {[%emt 0:00:00]} Kh6 {[%emt 0:01:33]} 32. g4 {[%emt 0:00:00]} b5 {[%emt 0:02:30]} 33. Rac1 {[%emt 0:00:00]} b4 {[%emt 0:00:08]} 34. axb4 {[%emt 0:00:00]} axb4 {[%emt 0:00:06]} 35. Rc7 {[%emt 0:00:00]} Rb8 {[%emt 0:04:33]} 36. Bc5 {[%emt 0:00:00]} Qxc7 {[%emt 0:02:30]} 37. Bf8+ {[%emt 0:00:00]} Nxf8 {[%emt 0:00:12]} 38. Rxc7 {[%emt 0:00:00]} Ne6 {[%emt 0:00:18]} 39. Qe7 {[%emt 0:00:00]} hxg4 {[%emt 0:00:30]} 40. Qh4# {[%emt 0:00:00]} 1-0